Cogmind - Beta 14 @@@ ROGUE MODE // 2024.12.24 @ 19:39:00 // Winter2021/Sauler Player: 7604 Result: Destroyed by G-34 Mercenary with Small Laser Performance ------------- Evolutions (0) 0 Regions Visited (1) 200 Robots Destroyed (29) 145 Value Destroyed (661) 661 Prototype IDs (2) 40 Alien Tech Used (0) 0 Bonus (0) 0 TOTAL SCORE: 1046 Bonus ------- None Cogmind --------- Core Integrity 0/250 Matter 287/300 Energy 35/100 System Corruption 0% Temperature Cool (15) Movement Treading (240) Ox1 Location -10/Materials Parts ------- > --- POWER (1) -------- (None) > --- PROPULSION (2) --- Light Treads > --- UTILITY (2) ------ Large Storage Unit Seismic Detector > --- WEAPON (2) ------- Small Laser Small Laser > --- INVENTORY (15) --- Ion Engine Light Ion Engine Heat Sink Small Storage Unit Medium Storage Unit Weight Redist. System Small Laser Small Laser Assault Rifle Datajack Peak State ------------ > --- POWER ------------ Ion Engine > --- PROPULSION ------- Light Treads Light Treads > --- UTILITY ---------- Small Storage Unit Improved Terrain Scanner > --- WEAPON ----------- Medium Laser Small Laser > --- INVENTORY -------- Light Ion Engine Assault Rifle [Rating: 9] Favorites ----------- Power Light Ion Engine Engine Light Ion Engine Propulsion Light Treads Treads Light Treads Utility Heat Sink Device Heat Sink Storage Large Storage Unit Weapon Medium Laser Energy Gun Medium Laser Build | -11 -10 ------- Run | Yrd Mat Slots Evolved . | . . Power . | . . Propulsion . | . . Utility . | . . Weapon . | . . Parts Attached 18 | 7 11 Power 2 | 1 1 Engine 2 | 1 1 Core . | . . Reactor . | . . Propulsion 3 | 2 1 Treads 3 | 2 1 Leg . | . . Wheel . | . . Hover . | . . Flight . | . . Utility 7 | 2 5 Device 4 | 1 3 Storage 3 | 1 2 Processor . | . . Hackware . | . . Protection . | . . Artifact . | . . Weapon 6 | 2 4 Energy Gun 6 | 2 4 Energy Cannon . | . . Ballistic Gun . | . . Ballistic Cannon . | . . Launcher . | . . Special Weapon . | . . Impact Weapon . | . . Slashing Weapon . | . . Piercing Weapon . | . . Special Melee Weapon . | . . Unidentified Prototypes . | . . Parts Lost 9 | . 9 Power 2 | . 2 Propulsion 2 | . 2 Utility 2 | . 2 Weapon 3 | . 3 Highest Loss Streak 5 | . 5 To Critical Strikes . | . . Average Slot Usage (%) 94 | . 94 Engine 13 | . 13 Treads 24 | . 24 Device 12 | . 12 Storage 14 | . 14 Energy Gun 27 | . 27 Peak Build Rating 9 | 9 9 Average Rating 7 | 5 7 On Entrance 4 | . 9 Naked Turns . | . . Heaviest Build 28 | 14 28 Greatest Support 46 | 40 46 Greatest Overweight (x) 1 | . 1 Average Overweight (x) . | . . Largest Inventory Capacity 15 | 8 15 Average Capacity 12 | 7 12 Most Carried 13 | 2 13 Average Carried 6 | 1 7 Final Capacity 15 | 8 15 Final Carried 10 | 2 10 Class Distribution -------------------- 100% | Mutant Dominant Class ---------------- Mutant | -10/Materials Resources | -11 -10 ----------- Run | Yrd Mat Matter Collected 357 | 270 87 Remotely . | . . Salvage Created 940 | 80 860 Parts 55 | 8 47 Haulers Intercepted 1 | . 1 Recyclers Shooed 2 | . 2 Parts Field Recycled . | . . Retrieved Matter . | . . Parts Self-Destructed . | . . Prevented . | . . Kills | -11 -10 ------- Run | Yrd Mat Combat Hostiles Destroyed 20 | . 20 Guns 18 | . 18 Classes Destroyed 7 | 1 6 Worker 1 | . 1 Tunneler 3 | 3 . Hauler 1 | . 1 Operator 2 | . 2 Watcher 2 | . 2 Swarmer 5 | . 5 Grunt 15 | . 15 Best Kill Streak 6 | 2 6 Combat Bots Only 5 | . 5 Max Kills in Single Turn 2 | 1 2 Gunslinging . | . . Exploded . | . . Melee . | . . Uniques/NPCs Destroyed . | . . Combat | -11 -10 -------- Run | Yrd Mat Hostile Shots Fired 138 | . 138 Missed 35 | . 35 Damage Taken 1044 | . 1044 Core 259 | . 259 Absorbed by Shields . | . . Core Remaining (%) 100 | 100 . Volleys Fired 84 | 5 79 Largest 2 | 2 2 Hottest 100 | 90 100 Shots Fired 166 | 10 156 Gun 166 | 10 156 Cannon . | . . Launcher . | . . Special . | . . Kinetic . | . . Thermal 166 | 10 156 Explosive . | . . Electromagnetic . | . . Robot Hit Streak 22 | 5 22 Robot Miss Streak 4 | 1 4 Penetration Max . | . . Secondary Targets 5 | . 5 Max Gunslinging Chain 1 | . 1 Shots Hit Robots 118 | 7 111 Core Hits 48 | 3 45 Critical Kills . | . . Critical Parts Destroyed . | . . Critical Strikes 9 | . 9 Burn 9 | . 9 Melee Attacks . | . . Impact . | . . Slashing . | . . Piercing . | . . Sneak Attacks . | . . Combat Hostiles . | . . Follow-up Attacks . | . . Damage Inflicted 1465 | 80 1385 Guns 1461 | 80 1381 Cannons . | . . Explosions . | . . Melee . | . . Ramming 4 | . 4 Kinetic . | . . Thermal 1461 | 80 1381 Explosive . | . . Electromagnetic . | . . Impact . | . . Slashing . | . . Piercing . | . . Highest Corruption . | . . Average Corruption . | . . Corruption Purged . | . . Corruption Blocked . | . . Overload Shots . | . . Overflow Damage . | . . Projectiles . | . . Explosions . | . . Melee . | . . Knockbacks . | . . Impact . | . . Kinetic . | . . Secondary . | . . Self-Inflicted Damage . | . . Shots . | . . Rammed 1 | . 1 Targets Rammed 1 | . 1 Kicked . | . . Crushed . | . . Highest Temperature 315 | 90 315 Average Temperature 78 | 36 82 Received Heat Transfer 423 | . 423 Siege Activations . | . . Robots Corrupted . | . . Combat Hostiles . | . . Parts Fried . | . . Impact Corruptions . | . . Robots Melted 2 | . 2 Combat Hostiles 2 | . 2 Parts Melted 9 | . 9 Heat Transferred 4581 | 211 4370 Parts Sabotaged . | . . Parts Stolen . | . . Parts Stripped . | . . Power Chain Reactions . | . . Alert | -11 -10 ------- Run | Yrd Mat Peak Influence 246 | 15 246 Initial 9 | . 9 Average 109 | 5 118 Maximum Alert Level 1 | . 1 Low Security (%) 89 | 100 88 Level 1 10 | . 11 Level 2 . | . . Level 3 . | . . Level 4 . | . . Level 5 . | . . High Security . | . . Max Security . | . . Squads Dispatched 6 | . 6 Investigation 4 | . 4 Extermination . | . . Reinforcement 2 | . 2 Assault . | . . Garrison . | . . Intercept . | . . Searches Triggered . | . . Construction Impeded . | . . Haulers Reinforced . | . . Active Scanning Responses . | . . Cargo Convoy Interrupts . | . . Stealth | -11 -10 --------- Run | Yrd Mat Distress Signals . | . . Communications Jammed . | . . Distress Signals . | . . Times Spotted 28 | . 28 Peak Tracking Total 5 | . 5 Tactical Retreats 1 | . 1 Traps | -11 -10 ------- Run | Yrd Mat Traps Triggered 4 | . 4 Indirectly . | . . Trap Hack Attempts . | . . Triggered . | . . Disarmed . | . . Reprogrammed . | . . Reused . | . . Traps Extracted . | . . Installed . | . . Triggered . | . . Machines | -11 -10 ---------- Run | Yrd Mat Machines Disabled . | . . Max in Single Turn . | . . Machines Repaired . | . . Machines Dismantled . | . . Machines Sabotaged . | . . Overloaded Fab Kills . | . . Hacking | -11 -10 --------- Run | Yrd Mat Machines Accessed 3 | . 3 Terminals 3 | . 3 Fabricators . | . . Repair Stations . | . . Recycling Units . | . . Scanalyzers . | . . Garrison Access . | . . Total Hacks 10 | . 10 Successful 6 | . 6 Failed 4 | . 4 Catastrophic 1 | . 1 Database Lockouts . | . . Manual 8 | . 8 Terminals 10 | . 10 Fabricators . | . . Repair Stations . | . . Recycling Units . | . . Scanalyzers . | . . Garrison Access . | . . Terminal Hacks 2 | . 2 Robot Schematic 1 | . 1 Prototype ID Bank 1 | . 1 Fabricator Hacks . | . . Repair Station Hacks . | . . Recycling Unit Hacks . | . . Scanalyzer . | . . Garrison Access Hacks . | . . Unauthorized Hacks 4 | . 4 Terminals 4 | . 4 Botnet 1 | . 1 Skim 3 | . 3 Fabricators . | . . Repair Stations . | . . Recycling Units . | . . Scanalyzers . | . . Garrison Access . | . . Data Cores Recovered . | . . Used . | . . Hacking Detections 3 | . 3 Full Trace Events . | . . Feedback Events . | . . Feedback Blocked . | . . Robot Schematics Acquired 1 | . 1 Robots Built . | . . Authchips . | . . Time . | . . Total Robot Build Rating . | . . Part Schematics Acquired . | . . Parts Built . | . . Authchips . | . . Time . | . . Total Part Build Rating . | . . Parts Repaired . | . . Time . | . . Parts Recycled . | . . Recycled Matter . | . . Retrieved Matter . | . . Retrieved Components . | . . Parts Scanalyzed . | . . Part Schematics Acquired . | . . Parts Damaged . | . . Bothacking | -11 -10 ------------ Run | Yrd Mat Used RIF Installer . | . . Robots Hacked . | . . Non-combat . | . . Combat . | . . Robot Hacks Applied . | . . Relay Couplers Released . | . . Fabnet Peak Effective % . | . . Robots Rewired . | . . Allies Hacked . | . . Hacks Repelled . | . . Allies | -11 -10 -------- Run | Yrd Mat Total Allies . | . . Largest Group . | . . Highest-Rated Group . | . . Highest-Rated Ally . | . . Total Orders . | . . Ally Attacks . | . . Total Damage . | . . Kills . | . . Allies Corrupted . | . . Allies Melted . | . . Intel | -11 -10 ------- Run | Yrd Mat Robot Analysis Total . | . . Derelict Logs Recovered . | . . Drone Launches . | . . Drone Recoveries . | . . Exploration | -11 -10 ------------- Run | Yrd Mat Turns Passed 1580 | 123 1457 Spaces Moved 690 | 61 629 Core 2 | 2 . Treads 688 | 59 629 Legs . | . . Wheels . | . . Hover . | . . Flight . | . . Fastest Speed 50 | 50 160 Average Speed 167 | 156 168 Slowest Speed 240 | 160 240 Overloaded Moves . | . . Propulsion Burnouts . | . . Robots Hopped . | . . Cave-ins Triggered . | . . Exploration Rate (%) 39 | 5 73 Regions Visited 1 Branch Regions . Pre-discovered Areas . | . . Known Exits Taken . | . . Unknown Exits Taken 1 | 1 . Scrap Searched . | . . Spaces Dug . | . . Terrain Destroyed . | . . Melee . | . . Projectile . | . . AOE . | . . Terrain Rammed . | . . Walls Destroyed . | . . Machines Disabled . | . . Actions | -11 -10 --------- Run | Yrd Mat Total 944 | 75 869 Wait 140 | 1 139 Move 689 | 60 629 Hop . | . . Pick Up 10 | 2 8 Fast Attach 12 | 7 5 Attach 4 | . 4 Detach 2 | . 2 Swap 2 | . 2 Drop . | . . Fire 84 | 5 79 Melee . | . . Ram . | . . Kick . | . . Crush 1 | . 1 Escape Stasis . | . . Rewire . | . . Trap . | . . Miscellaneous . | . . Route ------- -11/Scrapyard -10/Materials (discovered 3 exits: [*Mat x2] / [*Min]) History --------- Turn | Location | Event 23 | -11/Scrapyard | Discovered new exit (range 15) 124 | -11/Scrapyard | Entered Materials 148 | -10/Materials | Discovered new exit (range 16) 317 | -10/Materials | Build established: Mutant 471 | -10/Materials | Discovered new exit (range 14) 783 | -10/Materials | Discovered new exit (range 16) 840 | -10/Materials | Core integrity fell below 50% 1560 | -10/Materials | Core integrity fell below 20% 1581 | -10/Materials | Destroyed by G-34 Mercenary with Small Laser Last Messages --------------- 01509_ U-05 Engineer lays Concrete. 01520_ R-06 Scavenger collects Lgt. Ion Engine. 01539_ Lgt. Treads destroyed. 01547_ Lgt. Ion Engine destroyed. 01553_ Heat Sink destroyed. 01554_ G-34 Mercenary heat short circuits Ion Engine. 01557_ G-34 Mercenary heat short circuits Aluminum Leg. 01558_ Med. Laser destroyed. 01560_ Sml. Laser destroyed. 01564_ Aluminum Leg melted. 01564_ G-34 Mercenary destroyed. 01564_ Switching to secondary target: G-34 Mercenary. 01567_ G-34 Mercenary destroyed. 01570_ Acquired 17 matter. 01572_ K-01 Serf collects debris. 01577_ R-06 Scavenger collects Broken Ion Engine. Map ----- +----------------------------------------------------+ | ???????????????????????????????????#??????????? | | ??????????????????????????????????#???????????? | | ????????????????????????????????????????????#?? | | ??????????????????????????????????????????????? | | ???????????????????????????????????#????????#?? | | ??????????????????????????????????????????????? | | ??????????????????????????????????????????????? | | ??????????????????????????????????????????????? | | ????????????????????????????????????########### | | ????????????????????????#???????##### # | | ????????????????###+##??????????# # # | | ????????????????# ???????????# #% # | | ???????????????? ???????????# # # | | ???????????????? ?#?????????# + """ """ # | | ????????????????# ???????????# # """ """ # | | ????????????????# ########????# # """ """ # | | ????????????????# T# ! ##?#?# # # | | ????????????????# ## #????# ##+######+# | | ????????????????# ## """#????# #????# # | | ????????????????# ## """###### #????# # | | ????????????????# ## """# ## #?#?## # | | ????????????????# ## # #T #????# # | | ??????#########?# ## """# ## ###### # | | ??????# # ##= """# ## % # | | ??????# # *rg """#= ## #####%# | | ??????# + ##@ %! # ## #???# # | | ??????# # ####+### ## #???# # | | ??????# """ """ #% %## =* ##+###% #??## # | | ??????? """ """?# % #####+# | | ????????""" """?# ## | | ????????? ??# % ## | | ???????????###??## ### ##+####### ## | | ?????????????????#+#?####### ##### ## """ | | ???????????????? ??????# ##" # """ | | ??????????????# !!????# ##"" # """ | | ??????????????# """ !! ??# =##!! # """ | | ??????????????# """ ! ## ##"" < # | | ??????????????# """ ## ##|| # """ | | ??????????????# ## ##"" # """ | | ??????????????# ## ##" # """ | | ??????????????######+####### ##### ## """ | | ???????????????????? ?????######??#T ## | | ???????????????????? ?????????????## ####### | | ???????????????????? ?????####?????# #?????? | | ???????????????????? #?????# ???? # #?????? | | ?????????????????????#?????# ??? ### #?????? | | ???????????????????????????# """ #?# #?????? | | ???????????????????????????# """ #?#%#?????? | | ???????????????????????????# #?# #?????? | | ???????????????????????????# """ #?# ##???? | +----------------------------------------------------+ Best States ------------- Heat Dissipation 35 Energy Generation 10 Energy Capacity 250 Matter Stores 300 Matter Capacity 300 Sight Range 16 Terrain Scan Range 16 Terrain Scan Density 10 Additional Mass Support 6 Evasion (%) 40 Recoil Reduction 2 Item Schematics ----------------- None Robot Schematics ------------------ M-13 Machinist | -10/Materials | Hacked Fabricated ------------ Nothing Alien Tech Used ----------------- None Achievements -------------- None Challenges ------------ None Game ------ Seed CloakUtilityThruster Manual? 0 Play Time 00:07:15 Cumulative 171.8 hours Start 2024.12.24 @ 19:31:48 End 2024.12.24 @ 19:39:00 Sessions 1 Manual Loads 0 Difficulty Rogue Special Mode Winter2021/Sauler Game No. 87 Rogue 24 Adventurer 63 Explorer 0 Win Type - Total 8 Types 7/0/0/1/0/0/0/0/0 Lore% 70 Gallery% 69 Achievement% 57 Wizard Run 0 Options --------- Layout 1 ASCII 0 Keyboard 1 Movement Numpad Keybinds 0 Fullscreen 2 Font 24/Terminus Map View 50x35 Zoom Use 0% Tactical HUD 1 Map Filters NONE Filters NONE Steam 1 RUN: 278fb578-872c-46f6-a63f-d4442fa3dab7